Workbook

Sheet 2016-17 (hidden)
A1: FIN. YEAR | B1: SEX | C1: Code | D1: Taxable Income | E1: Income Tax Liability | F1: Less: Rebate | G1: Sub Total | H1: Add: Surcharge | I1: Total Tax | J1: Add: Education Cess | K1: Net Tax | L1: SYSTEM | M1: DIFF
A2: 2016-2017 | B2: M | C2: 0003 | D2: 150000 | E2: =ROUND(IF(A2="2016-2017",IF(OR(B2="M",B2="F"),IF(D2<=250000,0,IF(D2<=500000,(D2-250000)*10%,IF(D2<=1000000,(D2-500000)*20%+25000,(D2-1000000)*30%+125000))),0)+IF(B2="S",IF(D2<=300000,0,IF(D2<=500000,(D2-300000)*10%,IF(D2<=1000000,(D2-500000)*20%+20000,(D2-1000000)*30%+120000))),0),0),0) -> 0 | F2: =ROUND(IF(A2="2016-2017",IF(D2<=500000,MIN(5000,E2),0),0),0) -> 0 | G2: =E2-F2 -> 0 | H2: =IF(A2="2016-2017",ROUND(IF(D2>10000000,IF(OR(B2="M",B2="F"),IF(D2>10646940,G2*15%,MAX((D2-10000000),0)*70%),IF(D2>10645800,G2*15%,MAX((D2-10000000),0)*70%)),0),0),0) -> 0 | I2: =G2+H2 -> 0 | J2: =ROUND(I2*3%,0) -> 0 | K2: =SUM(I2:J2) -> 0 | L2: 0 | M2: =L2-K2 -> 0
A3: 2016-2017 | B3: S | C3: 0004 | D3: =D2+25000 -> 175000 | E3: =ROUND(IF(A3="2016-2017",IF(OR(B3="M",B3="F"),IF(D3<=250000,0,IF(D3<=500000,(D3-250000)*10%,IF(D3<=1000000,(D3-500000)*20%+25000,(D3-1000000)*30%+125000))),0)+IF(B3="S",IF(D3<=300000,0,IF(D3<=500000,(D3-300000)*10%,IF(D3<=1000000,(D3-500000)*20%+20000,(D3-1000000)*30%+120000))),0),0),0) -> 0 | F3: =ROUND(IF(A3="2016-2017",IF(D3<=500000,MIN(5000,E3),0),0),0) -> 0 | G3: =E3-F3 -> 0 | H3: =IF(A3="2016-2017",ROUND(IF(D3>10000000,IF(OR(B3="M",B3="F"),IF(D3>10646940,G3*15%,MAX((D3-10000000),0)*70%),IF(D3>10645800,G3*15%,MAX((D3-10000000),0)*70%)),0),0),0) -> 0 | I3: =G3+H3 -> 0 | J3: =ROUND(I3*3%,0) -> 0 | K3: =SUM(I3:J3) -> 0 | L3: 0 | M3: =L3-K3 -> 0
A4: 2016-2017 | B4: S | C4: 0004 | D4: =D3+25000 -> 200000 | E4: =ROUND(IF(A4="2016-2017",IF(OR(B4="M",B4="F"),IF(D4<=250000,0,IF(D4<=500000,(D4-250000)*10%,IF(D4<=1000000,(D4-500000)*20%+25000,(D4-1000000)*30%+125000))),0)+IF(B4="S",IF(D4<=300000,0,IF(D4<=500000,(D4-300000)*10%,IF(D4<=1000000,(D4-500000)*20%+20000,(D4-1000000)*30%+120000))),0),0),0) -> 0 | F4: =ROUND(IF(A4="2016-2017",IF(D4<=500000,MIN(5000,E4),0),0),0) -> 0 | G4: =E4-F4 -> 0 | H4: 0 | I4: =G4+H4 -> 0 | J4: 0 | K4: 0 | L4: 0 | M4: 0
A5: 2016-2017 | B5: S | C5: 0004 | D5: 225000 | E5: 0 | F5: 0 | G5: 0 | H5: 0 | I5: 0 | J5: 0 | K5: 0 | L5: 0 | M5: 0
A6: 2016-2017 | B6: S | C6: 0004 | D6: 250000 | E6: 0 | F6: 0 | G6: 0 | H6: 0 | I6: 0 | J6: 0 | K6: 0 | L6: 0 | M6: 0

Sheet 2017-18 (hidden)
A1: FIN. YEAR | B1: SEX | C1: Code | D1: Taxable Income | E1: Income Tax Liability | F1: Less: Rebate | G1: Sub Total | H1: Add: Surcharge | I1: Total Tax | J1: Add: Education Cess | K1: Net Tax | L1: SYSTEM | M1: DIFF
A2: 2017-2018 | B2: M | C2: 0003 | D2: 150000 | E2: =ROUND(IF(A2="2017-2018",IF(OR(B2="M",B2="F"),IF(D2<=250000,0,IF(D2<=500000,(D2-250000)*5%,IF(D2<=1000000,(D2-500000)*20%+12500,(D2-1000000)*30%+112500))),0)+IF(B2="S",IF(D2<=300000,0,IF(D2<=500000,(D2-300000)*5%,IF(D2<=1000000,(D2-500000)*20%+10000,(D2-1000000)*30%+110000))),0),0),0) -> 0 | F2: =ROUND(IF(A2="2017-2018",IF(D2<=350000,MIN(2500,E2),0),0),0) -> 0 | G2: =E2-F2 -> 0 | H2: =IF(A2="2017-2018",ROUND(IF(D2>10000000,IF(OR(B2="M",B2="F"),IF(D2>10644080,G2*15%,MAX((D2-10000000),0)*70%),IF(D2>10620840,G2*15%,MAX((D2-10000000),0)*70%)),0)+IF(AND(D2>5000000,D2<=10000000),IF(OR(B2="M",B2="F"),IF(D2>5195890,G2*10%,MAX((D2-5000000),0)*70%),IF(D2>5195520,G2*10%,MAX((D2-5000000),0)*70%)),0),0),0) -> 0 | I2: =G2+H2 -> 0 | J2: =ROUND(I2*3%,0) -> 0 | K2: =SUM(I2:J2) -> 0 | L2: 0 | M2: =L2-K2 -> 0
A3: 2017-2018 | B3: M | C3: 0004 | D3: =D2+25000 -> 175000 | E3: =ROUND(IF(A3="2017-2018",IF(OR(B3="M",B3="F"),IF(D3<=250000,0,IF(D3<=500000,(D3-250000)*5%,IF(D3<=1000000,(D3-500000)*20%+12500,(D3-1000000)*30%+112500))),0)+IF(B3="S",IF(D3<=300000,0,IF(D3<=500000,(D3-300000)*5%,IF(D3<=1000000,(D3-500000)*20%+10000,(D3-1000000)*30%+110000))),0),0),0) -> 0 | F3: =ROUND(IF(A3="2017-2018",IF(D3<=350000,MIN(2500,E3),0),0),0) -> 0 | G3: =E3-F3 -> 0 | H3: =IF(A3="2017-2018",ROUND(IF(D3>10000000,IF(OR(B3="M",B3="F"),IF(D3>10644080,G3*15%,MAX((D3-10000000),0)*70%),IF(D3>10620840,G3*15%,MAX((D3-10000000),0)*70%)),0)+IF(AND(D3>5000000,D3<=10000000),IF(OR(B3="M",B3="F"),IF(D3>5195890,G3*10%,MAX((D3-5000000),0)*70%),IF(D3>5195520,G3*10%,MAX((D3-5000000),0)*70%)),0),0),0) -> 0 | I3: =G3+H3 -> 0 | J3: =ROUND(I3*3%,0) -> 0 | K3: =SUM(I3:J3) -> 0 | L3: 0 | M3: =L3-K3 -> 0
A4: 2017-2018 | B4: M | C4: 0004 | D4: =D3+25000 -> 200000 | E4: 0 | F4: 0 | G4: 0 | H4: 0 | I4: 0 | J4: 0 | K4: 0 | L4: 0 | M4: 0
A5: 2017-2018 | B5: M | C5: 0004 | D5: 225000 | E5: 0 | F5: 0 | G5: 0 | H5: 0 | I5: 0 | J5: 0 | K5: 0 | L5: 0 | M5: 0
A6: 2017-2018 | B6: M | C6: 0004 | D6: 250000 | E6: 0 | F6: 0 | G6: 0 | H6: 0 | I6: 0 | J6: 0 | K6: 0 | L6: 0 | M6: 0
A7: 2017-2018 | B7: M | C7: 0004 | D7: 275000 | E7: 1250 | F7: 1250 | G7: 0 | H7: 0 | I7: 0 | J7: 0 | K7: 0 | L7: 0 | M7: 0
A8: 2017-2018 | B8: M | C8: 0004 | D8: 300000 | E8: 2500 | F8: 2500 | G8: 0 | H8: 0 | I8: 0 | J8: 0 | K8: 0 | L8: 0 | M8: 0
A9: 2017-2018 | B9: M | C9: 0004 | D9: 325000 | E9: 3750 | F9: 2500 | G9: 1250 | H9: 0 | I9: 1250 | J9: 38 | K9: 1288 | L9: 0 | M9: -1288
A10: 2017-2018 | B10: M | C10: 0004 | D10: 350000 | E10: 5000 | F10: 2500 | G10: 2500 | H10: 0 | I10: 2500 | J10: 75 | K10: 2575 | L10: 0 | M10: -2575

Sheet Tax Formulas in Excel
A1: FIN. YEAR | B1: SEX | C1: Code | D1: Taxable Income | E1: Income Tax Liability | F1: Less: Rebate | G1: Sub Total | H1: Add: Surcharge | I1: Total Tax | J1: Add: Education Cess | K1: Net Tax
A2: 2019-2020 | B2: M | D2: 0 | E2: =ROUND(IF(OR(A2="2019-2020",A2="2018-2019",A2="2017-2018"),IF(OR(B2="M",B2="F"),IF(D2<=250000,0,IF(D2<=500000,(D2-250000)*5%,IF(D2<=1000000,(D2-500000)*20%+12500,(D2-1000000)*30%+112500))),0)+IF(B2="S",IF(D2<=300000,0,IF(D2<=500000,(D2-300000)*5%,IF(D2<=1000000,(D2-500000)*20%+10000,(D2-1000000)*30%+110000))),0),0),0)+ROUND(IF(A2="2016-2017",IF(OR(B2="M",B2="F"),IF(D2<=250000,0,IF(D2<=500000,(D2-250000)*10%,IF(D2<=1000000,(D2-500000)*20%+25000,(D2-1000000)*30%+125000))),0)+IF(B2="S",IF(D2<=300000,0,IF(D2<=500000,(D2-300000)*10%,IF(D2<=1000000,(D2-500000)*20%+20000,(D2-1000000)*30%+120000))),0),0),0) -> 0 | F2: =ROUND(IF(OR(A2="2018-2019",A2="2017-2018"),IF(D2<=350000,MIN(2500,E2),0),0),0)+ROUND(IF(A2="2016-2017",IF(D2<=500000,MIN(5000,E2),0),0),0)+IF(A2="2019-2020",IF(D2<=500000,MIN(12500,E2),0),0) -> 0 | G2: =E2-F2 -> 0 | H2: =ROUND(IF(AND(A2="2019-2020",B2<>"S"),IF(D2<=5000000,0,IF(D2<=5195890,(D2-5000000)*70%,IF(D2<=10000000,G2*10%,IF(D2<=10214700,(D2-10000000)*70%+281250,IF(D2<=20000000,G2*15%,IF(D2<=20930000,(D2-20000000)*70%+871875,IF(D2<=50000000,G2*25%,IF(D2<=53017830,(D2-50000000)*70%+3703125,G2*37%)))))))),0),0)+ROUND(IF(AND(A2="2019-2020",B2="S"),IF(D2<=5000000,0,IF(D2<=5195530,(D2-5000000)*70%,IF(D2<=10000000,G2*10%,IF(D2<=10214510,(D2-10000000)*70%+281000,IF(D2<=20000000,G2*15%,IF(D2<=20929600,(D2-20000000)*70%+871500,IF(D2<=50000000,G2*25%,IF(D2<=53017320,(D2-50000000)*70%+3702500,G2*37%)))))))),0),0)+IF(OR(A2="2018-2019",A2="2017-2018"),ROUND(IF(D2>10000000,IF(OR(B2="M",B2="F"),IF(D2>=10214700,G2*15%,MAX((D2-10000000),0)*70%+281250),IF(D2>=10214510,G2*15%,MAX((D2-10000000),0)*70%+281000)),0)+IF(AND(D2>5000000,D2<=10000000),IF(OR(B2="M",B2="F"),IF(D2>5195890,G2*10%,MAX((D2-5000000),0)*70%),IF(D2>5195530,G2*10%,MAX((D2-5000000),0)*70%)),0),0),0)+IF(A2="2016-2017",ROUND(IF(D2>10000000,IF(OR(B2="M",B2="F"),IF(D2>10646940,G2*15%,MAX((D2-10000000),0)*70%),IF(D2>10645800,G2*15%,MAX((D2-10000000),0)*70%)),0),0),0) -> 0 | I2: =G2+H2 -> 0 | J2: =ROUND(IF(OR(A2="2019-2020",A2="2018-2019"),(I2*4%),(I2*3%)),0) -> 0 | K2: =SUM(I2:J2) -> 0
A3: 2019-2020 | B3: S | D3: 0 | E3: 0 | F3: 0 | G3: 0 | H3: =ROUND(IF(AND(A3="2019-2020",B3<>"S"),IF(D3<=5000000,0,IF(D3<=5195890,(D3-5000000)*70%,IF(D3<=10000000,G3*10%,IF(D3<=10214700,(D3-10000000)*70%+281250,IF(D3<=20000000,G3*15%,IF(D3<=20930000,(D3-20000000)*70%+871875,IF(D3<=50000000,G3*25%,IF(D3<=53017830,(D3-50000000)*70%+3703125,G3*37%)))))))),0),0)+ROUND(IF(AND(A3="2019-2020",B3="S"),IF(D3<=5000000,0,IF(D3<=5195530,(D3-5000000)*70%,IF(D3<=10000000,G3*10%,IF(D3<=10214510,(D3-10000000)*70%+281000,IF(D3<=20000000,G3*15%,IF(D3<=20929600,(D3-20000000)*70%+871500,IF(D3<=50000000,G3*25%,IF(D3<=53017320,(D3-50000000)*70%+3702500,G3*37%)))))))),0),0)+IF(OR(A3="2018-2019",A3="2017-2018"),ROUND(IF(D3>10000000,IF(OR(B3="M",B3="F"),IF(D3>=10214700,G3*15%,MAX((D3-10000000),0)*70%+281250),IF(D3>=10214510,G3*15%,MAX((D3-10000000),0)*70%+281000)),0)+IF(AND(D3>5000000,D3<=10000000),IF(OR(B3="M",B3="F"),IF(D3>5195890,G3*10%,MAX((D3-5000000),0)*70%),IF(D3>5195530,G3*10%,MAX((D3-5000000),0)*70%)),0),0),0)+IF(A3="2016-2017",ROUND(IF(D3>10000000,IF(OR(B3="M",B3="F"),IF(D3>10646940,G3*15%,MAX((D3-10000000),0)*70%),IF(D3>10645800,G3*15%,MAX((D3-10000000),0)*70%)),0),0),0) -> 0 | I3: 0 | J3: =ROUND(IF(OR(A3="2019-2020",A3="2018-2019"),(I3*4%),(I3*3%)),0) -> 0 | K3: =SUM(I3:J3) -> 0

Sheet Income Slabs
A1: FIN. YEAR | B1: STATUS | C1: Income From | D1: Income Up to | E1: Tax Rate | F1: Tax Amount | G1: Remarks | I1: FIN. YEAR | J1: STATUS | K1: Income From | L1: Income Up to | M1: Surcharge | N1: Tax Amount | O1: Remarks
A2: 2019-2020 | B2: General | C2: 0 | D2: 250000 | E2: 0 | F2: 0 | G2: Income Tax Slab | I2: 2019-2020 | J2: General | K2: 0 | L2: 5000000 | M2: 0 | N2: 0 | O2: Surcharge
A3: 2019-2020 | B3: General | C3: =D2+1 -> 250001 | D3: 500000 | E3: 5 | F3: =ROUND((D3-C3)*E3%,0) -> 12500 | I3: 2019-2020 | J3: General | K3: =+L2+1 -> 5000001 | L3: 5195890 | M3: Marginal | N3: 0
A4: 2019-2020 | B4: General | C4: =D3+1 -> 500001 | D4: 1000000 | E4: 20 | F4: =ROUND((D4-C4)*E4%,0) -> 100000 | I4: 2019-2020 | J4: General | K4: =+L3+1 -> 5195891 | L4: 10000000 | M4: 10 | N4: 0
A5: 2019-2020 | B5: General | C5: 1000001 | D5: > | E5: 30 | F5: =F4+F3 -> 112500 | I5: 2019-2020 | J5: General | K5: =+L4+1 -> 10000001 | L5: 10214700 | M5: Marginal | N5: 281250
I6: 2019-2020 | J6: General | K6: 10214701 | L6: 20000000 | M6: 15 | N6: 0
A7: 2019-2020 | B7: Senior Citizen | C7: 0 | D7: 300000 | E7: 0 | F7: 0 | I7: 2019-2020 | J7: General | K7: 20000001 | L7: 20930000 | M7: Marginal | N7: 871875
A8: 2019-2020 | B8: Senior Citizen | C8: =D7+1 -> 300001 | D8: 500000 | E8: 5 | F8: =ROUND((D8-C8)*E8%,0) -> 10000 | I8: 2019-2020 | J8: General | K8: 20930001 | L8: 50000000 | M8: 25 | N8: 0
A9: 2019-2020 | B9: Senior Citizen | C9: =D8+1 -> 500001 | D9: 1000000 | E9: 20 | F9: =ROUND((D9-C9)*E9%,0) -> 100000 | I9: 2019-2020 | J9: General | K9: 50000001 | L9: 53017830 | M9: Marginal | N9: 3703125
A10: 2019-2020 | B10: Senior Citizen | C10: 1000001 | D10: > | E10: 30 | F10: =F9+F8 -> 110000 | I10: 2019-2020 | J10: General | K10: 53017831 | L10: > | M10: 0.37 | N10: 0
I12: 2019-2020 | J12: Senior Citizen | K12: 0 | L12: 5000000 | M12: 0 | N12: 0 | O12: Surcharge
I13: 2019-2020 | J13: Senior Citizen | K13: =+L12+1 -> 5000001 | L13: 5195530 | M13: Marginal | N13: 0
I14: 2019-2020 | J14: Senior Citizen | K14: =+L13+1 -> 5195531 | L14: 10000000 | M14: 10 | N14: 0
I15: 2019-2020 | J15: Senior Citizen | K15: =+L14+1 -> 10000001 | L15: 10214510 | M15: Marginal | N15: 281000
I16: 2019-2020 | J16: Senior Citizen | K16: 10214511 | L16: 20000000 | M16: 15 | N16: 0
I17: 2019-2020 | J17: Senior Citizen | K17: 20000001 | L17: 20929600 | M17: Marginal | N17: 871500
I18: 2019-2020 | J18: Senior Citizen | K18: 20929601 | L18: 50000000 | M18: 25 | N18: 0
I19: 2019-2020 | J19: Senior Citizen | K19: 50000001 | L19: 53017320 | M19: Marginal | N19: 3702500
I20: 2019-2020 | J20: Senior Citizen | K20: 53017321 | L20: > | M20: 0.37 | N20: 0
